bitfinex-derivatives/quotes_BTCF0:USTF0_20241021
["timestamp","ask_amount","ask_price","bid_price","bid_amount"]
[1729536048145,0.074374,67258.0,67257.0,0.24256805]
[1729536048548,0.074374,67258.0,67257.0,0.02080764]
[1729536048549,0.079374,67258.0,67257.0,0.02080764]
[1729536048746,0.079374,67258.0,67250.0,0.1214]
[1729536048747,0.083374,67258.0,67250.0,0.1214]
[1729536048943,0.074381,67251.0,67250.0,0.1214]
[1729536049339,0.074381,67251.0,67250.0,0.34467165]
[1729536049654,0.074381,67251.0,67250.0,0.3663548]
[1729536049839,0.074381,67251.0,67250.0,0.77158077]
[1729536050039,0.074381,67251.0,67250.0,0.7271548]
[1729536050238,0.074381,67251.0,67250.0,0.6057548]
[1729536050741,0.074381,67251.0,67250.0,0.6087548]
[1729536050940,0.074381,67251.0,67250.0,0.6107548]
[1729536052152,0.074381,67251.0,67250.0,0.6851368]
[1729536052550,0.074381,67251.0,67250.0,0.72956277]
[1729536053443,0.074381,67251.0,67250.0,0.6851368]
[1729536055654,0.074379,67254.0,67253.0,0.074379]
[1729536057150,0.1178,67270.0,67253.0,0.22297989]
[1729536057151,0.074374,67258.0,67253.0,0.22297989]
[1729536057458,0.074374,67258.0,67257.0,0.435175]
[1729536057847,0.074374,67258.0,67257.0,0.65843988]
[1729536058156,0.074374,67258.0,67257.0,0.70886488]
[1729536058351,0.075374,67258.0,67257.0,0.70886488]
[1729536058852,0.075374,67258.0,67257.0,0.58406488]
[1729536059350,0.075374,67258.0,67257.0,0.3608]
[1729536059952,0.082374,67258.0,67257.0,0.3608]
[1729536061051,0.082374,67258.0,67257.0,0.02654363]
[1729536061248,0.074381,67251.0,67250.0,0.3608]
[1729536061444,0.074375,67257.0,67250.0,0.4722669]
[1729536061650,0.074377,67255.0,67254.0,0.07413416]
[1729536061850,0.074377,67255.0,67254.0,0.18560106]
[1729536062266,0.074377,67255.0,67254.0,0.1114669]
[1729536063066,0.074377,67255.0,67250.0,0.3608]
[1729536063067,0.074377,67255.0,67251.0,0.07416719]
[1729536063258,0.07438,67252.0,67251.0,0.07416719]
[1729536063557,0.07438,67252.0,67251.0,0.18550118]
[1729536063755,0.07438,67252.0,67251.0,0.07416719]
[1729536063953,0.07438,67252.0,67251.0,0.18549051]
[1729536064153,0.001,67255.0,67251.0,0.18546964]
[1729536064356,0.075378,67255.0,67254.0,0.074378]
[1729536064657,0.075378,67255.0,67254.0,0.18568045]
[1729536065458,0.076378,67255.0,67254.0,0.18568045]
[1729536065957,0.075378,67255.0,67254.0,0.18568045]
[1729536066155,0.075378,67255.0,67254.0,0.54648045]
[1729536066366,0.074374,67258.0,67257.0,0.074375]
[1729536066552,0.074363,67268.0,67257.0,0.11130245]
[1729536066859,0.074366,67266.0,67265.0,0.074365]
[1729536067049,0.074366,67266.0,67265.0,0.18504514]
[1729536067248,0.074366,67266.0,67265.0,0.19256776]
[1729536067455,0.074366,67266.0,67265.0,0.11820276]
[1729536067860,0.074366,67266.0,67265.0,0.11068014]
[1729536068256,0.074366,67266.0,67265.0,0.11798761]
[1729536068453,0.074366,67266.0,67265.0,0.19424676]
[1729536068961,0.074366,67266.0,67265.0,0.11057329]
[1729536069163,0.074366,67266.0,67265.0,0.27695644]
[1729536069354,0.074366,67266.0,67265.0,0.31971449]
[1729536069854,0.074366,67266.0,67265.0,0.35023704]
[1729536070052,0.0639497,67266.0,67265.0,0.4455256]
[1729536070257,0.07659238,67269.0,67268.0,0.074363]
[1729536070456,0.074352,67278.0,67268.0,0.54573629]
[1729536070666,0.3608,67296.0,67272.0,0.074358]
[1729536070667,0.2423,67291.0,67272.0,0.074358]
[1729536070871,0.07434,67288.0,67287.0,0.05933479]
[1729536071061,0.07434,67288.0,67283.0,0.07416849]
[1729536071062,0.074345,67284.0,67283.0,0.07416849]
[1729536071257,0.074346,67283.0,67282.0,0.07416849]
[1729536071564,0.074347,67282.0,67281.0,0.07416849]
[1729536071770,0.074343,67286.0,67279.0,0.11404]
[1729536071966,0.074349,67280.0,67279.0,0.11404]
[1729536072159,0.074349,67280.0,67277.0,0.22287332]
[1729536072467,0.074349,67280.0,67275.0,0.07416849]
[1729536072658,0.074349,67280.0,67273.0,0.11404]
[1729536072970,0.074351,67278.0,67277.0,0.22166658]
[1729536073260,0.080349,67280.0,67275.0,0.07413537]
[1729536073465,0.074354,67276.0,67275.0,0.07413537]
[1729536073666,0.080349,67280.0,67277.0,0.22269351]
[1729536073971,0.074355,67275.0,67274.0,0.14849037]
[1729536074467,0.074355,67275.0,67274.0,0.52112645]
[1729536075370,0.076355,67275.0,67274.0,0.48519428]
[1729536075566,0.076355,67275.0,67274.0,0.41108851]
[1729536075774,0.076355,67275.0,67274.0,0.29679928]
[1729536075968,0.076355,67275.0,67274.0,0.33673351]
[1729536076770,0.16042736,67275.0,67274.0,0.33673351]
[1729536076977,0.15842736,67275.0,67274.0,0.33673351]
[1729536077367,0.15842736,67275.0,67274.0,0.41108951]
[1729536077569,0.15942736,67275.0,67274.0,0.41108951]
[1729536078572,0.15842862,67275.0,67274.0,0.10362006]
[1729536078779,0.074356,67274.0,67273.0,0.0258093]
[1729536079087,0.074356,67274.0,67267.0,0.47484]
[1729536079088,0.074358,67272.0,67267.0,0.47484]
[1729536079284,0.15643162,67272.0,67267.0,0.47484]
[1729536079494,0.15643162,67272.0,67271.0,0.60958407]
[1729536079889,0.08207362,67272.0,67271.0,0.68394307]
[1729536080382,0.08207362,67272.0,67271.0,0.60958407]
[1729536081098,0.08207362,67272.0,67271.0,0.68394307]
[1729536081684,0.08207362,67272.0,67271.0,0.68694307]
[1729536082289,0.08207362,67272.0,67271.0,0.68494307]
[1729536083391,0.08207362,67272.0,67271.0,0.68794307]
[1729536083591,0.074354,67276.0,67275.0,0.074355]
[1729536083890,0.435145,67284.0,67275.0,0.074355]
[1729536083891,0.074348,67282.0,67281.0,0.074347]
[1729536084081,0.1251,67290.0,67285.0,0.074343]
[1729536084275,0.3608,67291.0,67287.0,0.07434]
[1729536084480,0.074342,67288.0,67287.0,0.07434]
[1729536085078,0.074342,67287.0,67286.0,0.1187974]
[1729536085580,0.074342,67287.0,67286.0,0.34126626]
[1729536085772,0.074342,67287.0,67286.0,0.29681186]
[1729536086075,0.006,67288.0,67287.0,0.074342]
[1729536086376,0.05683419,67290.0,67289.0,0.074339]
[1729536087370,0.074326,67302.0,67289.0,0.29695889]
[1729536087676,0.074326,67302.0,67301.0,0.3608]
[1729536088872,0.074326,67302.0,67301.0,0.659449]
[1729536089582,0.075326,67302.0,67301.0,0.660449]
[1729536090885,0.075326,67302.0,67301.0,0.68790815]
[1729536091570,0.11173236,67302.0,67301.0,0.68790815]
[1729536092866,0.075326,67302.0,67301.0,0.68690815]
[1729536093070,0.03740615,67302.0,67301.0,0.68790815]
[1729536093287,0.03740615,67302.0,67301.0,0.56888692]
[1729536094371,0.11173115,67302.0,67301.0,0.56888692]
[1729536094579,0.11173115,67302.0,67301.0,0.49456092]
[1729536094876,0.11173115,67302.0,67301.0,0.25278215]
[1729536095278,0.15736554,67302.0,67301.0,0.25278215]
[1729536095476,0.15736557,67302.0,67301.0,0.25278215]
[1729536097085,0.11173115,67302.0,67301.0,0.25278215]
[1729536098574,0.075325,67302.0,67301.0,0.25278215]
[1729536099874,0.075325,67302.0,67301.0,0.02845915]
[1729536101674,0.075325,67302.0,67301.0,0.10278515]
[1729536102871,0.075325,67302.0,67301.0,0.02845915]
[1729536105093,0.075325,67302.0,67301.0,0.10278515]
[1729536106379,0.075325,67302.0,67301.0,0.02845915]
[1729536107785,0.15736891,67302.0,67301.0,0.02845915]
[1729536109686,0.15736891,67302.0,67301.0,0.002]
[1729536112291,0.15736891,67302.0,67301.0,0.02878956]
[1729536112486,0.15736891,67302.0,67301.0,0.002]
[1729536112891,0.075325,67302.0,67301.0,0.002]
[1729536113091,0.15737291,67302.0,67301.0,0.002]
[1729536113293,0.31803324,67302.0,67301.0,0.002]
[1729536113595,0.075325,67302.0,67301.0,0.04642615]
[1729536114300,0.075325,67302.0,67301.0,0.002]
[1729536118505,0.521085,67302.0,67301.0,0.002]
[1729536118705,0.521085,67302.0,67301.0,0.04658877]
[1729536119112,0.521085,67302.0,67301.0,0.002]
[1729536125413,0.075325,67302.0,67301.0,0.002]
[1729536127009,0.436125,67302.0,67301.0,0.002]
[1729536128611,0.51817733,67302.0,67301.0,0.002]
[1729536131017,0.47253716,67302.0,67301.0,0.002]
[1729536131219,0.11173716,67302.0,67301.0,0.002]
[1729536131417,0.11173716,67302.0,67301.0,0.076326]
[1729536131626,0.11173451,67302.0,67301.0,0.076326]
[1729536135027,0.11173451,67302.0,67301.0,0.184626]
[1729536136621,0.075325,67302.0,67301.0,0.184626]
[1729536137822,0.075325,67302.0,67301.0,0.22921477]
[1729536138627,0.075325,67302.0,67301.0,0.15488877]
[1729536139613,0.075325,67302.0,67301.0,0.22921477]
[1729536139813,0.075325,67302.0,67301.0,0.15488877]
[1729536140320,0.075325,67302.0,67301.0,0.184626]
[1729536141817,0.075325,67302.0,67301.0,0.1103]
[1729536142020,0.075325,67302.0,67301.0,0.04657207]
[1729536142215,0.075325,67302.0,67301.0,0.002]
[1729536143634,0.15737598,67302.0,67301.0,0.002]
[1729536145531,0.15737598,67302.0,67301.0,0.076326]
[1729536151631,0.075325,67302.0,67301.0,0.076326]
[1729536152131,0.075325,67302.0,67301.0,0.08364159]
[1729536156026,0.075325,67302.0,67301.0,0.076326]
[1729536156230,0.075325,67302.0,67301.0,0.08389454]
[1729536156435,0.075325,67302.0,67301.0,0.076326]
[1729536156625,0.075325,67302.0,67301.0,0.08376806]
[1729536157320,0.075325,67302.0,67301.0,0.002]
[1729536158521,0.075325,67302.0,67301.0,0.076326]
[1729536161943,0.11173132,67302.0,67301.0,0.076326]
[1729536162739,0.075325,67302.0,67301.0,0.076326]
[1729536163035,0.11173129,67302.0,67301.0,0.002]
[1729536163251,0.075325,67302.0,67301.0,0.002]
[1729536163539,0.075325,67302.0,67301.0,0.076326]
[1729536164643,0.075325,67302.0,67301.0,0.08385883]
[1729536165532,0.11173186,67302.0,67301.0,0.08385883]
[1729536166739,0.075325,67302.0,67301.0,0.26915855]
[1729536167241,0.075325,67302.0,67301.0,0.26915853]
[1729536167430,0.075325,67302.0,67301.0,0.1579646]
[1729536170032,0.001,67302.0,67301.0,0.1579646]
[1729536170227,0.001,67302.0,67301.0,0.42044102]
[1729536170437,0.074318,67309.0,67308.0,0.074318]
[1729536170643,0.074318,67309.0,67308.0,0.50941816]
[1729536170840,0.074318,67309.0,67308.0,0.435118]
[1729536171537,0.075318,67309.0,67308.0,0.075318]
[1729536171733,0.075318,67309.0,67308.0,0.076318]
[1729536172830,0.074318,67309.0,67308.0,0.075318]
[1729536173043,0.074318,67309.0,67308.0,0.002]
[1729536173044,0.075318,67309.0,67308.0,0.002]
[1729536173633,0.075318,67309.0,67308.0,0.04657869]
[1729536173838,0.12095195,67309.0,67308.0,0.002]
[1729536174043,0.15735915,67309.0,67308.0,0.002]
[1729536174345,0.15735915,67309.0,67308.0,0.00147368]
[1729536174534,0.15735915,67309.0,67308.0,0.02818028]
[1729536177242,0.15735967,67309.0,67308.0,0.02818028]
[1729536177436,0.15735967,67309.0,67308.0,0.00147368]
[1729536177635,0.074333,67295.0,67294.0,0.074329]
[1729536177832,0.11074043,67295.0,67294.0,0.074329]
[1729536178037,0.11074043,67295.0,67294.0,0.29672804]
[1729536178744,0.11174043,67295.0,67294.0,0.29772804]
[1729536179340,0.11174043,67295.0,67294.0,0.41128804]
[1729536180251,0.11274043,67295.0,67294.0,0.41228804]
[1729536180849,0.11274043,67295.0,67294.0,0.77308804]
[1729536181040,0.11274128,67295.0,67294.0,0.77308804]
[1729536181744,0.076333,67295.0,67294.0,0.95865942]
[1729536183649,0.076333,67295.0,67294.0,0.8473882]
[1729536184349,0.076333,67295.0,67294.0,0.22439904]
[1729536184543,0.076333,67295.0,67294.0,0.28385239]
[1729536184749,0.076333,67295.0,67294.0,0.22439904]
[1729536185252,0.076333,67295.0,67294.0,0.29873304]
[1729536185450,0.076333,67295.0,67294.0,0.35818366]
[1729536186055,0.076333,67295.0,67294.0,0.29873304]
[1729536187148,0.076333,67295.0,67294.0,0.22439904]
[1729536188256,0.076333,67295.0,67294.0,0.002]
[1729536188754,0.076333,67295.0,67294.0,0.18779676]
[1729536189543,0.076333,67295.0,67294.0,0.07630016]
[1729536192348,0.076333,67295.0,67294.0,0.002]
[1729536193457,0.076333,67295.0,67294.0,0.06139943]
[1729536193752,0.522133,67295.0,67294.0,0.000138]
[1729536194055,0.522133,67295.0,67294.0,5.3e-07]
[1729536194360,0.07434,67288.0,67287.0,0.02639621]
[1729536194559,0.074344,67285.0,67283.0,0.05939943]
[1729536194757,0.1046,67287.0,67283.0,0.05939943]
[1729536194944,0.07435,67279.0,67278.0,0.074351]
[1729536195141,0.07435,67279.0,67278.0,0.2128221]
[1729536195350,0.07435,67279.0,67278.0,0.5105661]
[1729536195547,0.07435,67279.0,67278.0,0.32471834]
[1729536196556,0.07435,67279.0,67278.0,0.32971834]
[1729536197660,0.07435,67279.0,67278.0,0.26036734]
[1729536198051,0.074345,67284.0,67283.0,0.074344]
[1729536198052,0.074346,67284.0,67283.0,0.074344]
[1729536198255,0.3608,67292.0,67279.0,0.2129]
[1729536198565,0.074349,67280.0,67279.0,0.28725]
[1729536199553,0.074349,67280.0,67279.0,0.2169]
[1729536200361,0.002,67285.0,67279.0,0.2169]
[1729536200557,0.074346,67283.0,67282.0,0.074345]
[1729536201665,0.435128,67300.0,67282.0,0.6677597]
[1729536201853,0.1109,67306.0,67299.0,0.3608]
[1729536202163,0.074323,67304.0,67303.0,0.074322]
[1729536203056,0.074323,67304.0,67303.0,0.08166879]
[1729536203858,0.074323,67304.0,67303.0,0.08266879]
[1729536203859,0.076323,67304.0,67303.0,0.08266879]
[1729536204861,0.076323,67304.0,67303.0,0.08366879]
[1729536205158,0.078323,67304.0,67303.0,0.08366879]
[1729536205757,0.078323,67304.0,67303.0,0.076322]
[1729536207359,0.078323,67304.0,67303.0,0.1020725]
[1729536207868,0.078323,67304.0,67303.0,0.1020745]
[1729536208055,0.078323,67304.0,67303.0,0.0277505]
[1729536208256,0.078323,67304.0,67303.0,0.1020745]
[1729536209654,0.078323,67304.0,67303.0,0.0277505]
[1729536211273,0.078323,67304.0,67303.0,0.1020745]
[1729536212773,0.078323,67304.0,67303.0,0.0277505]
[1729536213670,0.078323,67304.0,67303.0,0.1020745]
[1729536214073,0.078323,67304.0,67303.0,0.0277505]
[1729536217472,0.524083,67304.0,67303.0,0.0277505]
[1729536218067,0.524083,67304.0,67303.0,0.002]
[1729536218772,0.56049424,67304.0,67303.0,0.002]
[1729536218970,0.60613326,67304.0,67303.0,0.00146824]
[1729536219175,0.92871006,67304.0,67303.0,0.00146824]
[1729536219378,0.76686236,67304.0,67303.0,0.00146824]
[1729536220360,0.81250294,67304.0,67303.0,0.00146824]
[1729536220565,0.9280605,67304.0,67303.0,0.00146824]
[1729536220877,0.76686392,67304.0,67303.0,0.00146824]
[1729536221077,0.76686392,67304.0,67303.0,0.00107969]
[1729536221278,0.76686392,67304.0,67279.0,0.3608]
[1729536221279,0.074347,67283.0,67282.0,0.074343]
[1729536221576,0.11076228,67283.0,67282.0,0.074343]
[1729536221962,0.11076197,67283.0,67282.0,0.074343]
[1729536223164,0.11076197,67283.0,67282.0,0.435143]
[1729536223364,0.11076197,67283.0,67282.0,0.001]
[1729536223365,0.11076403,67283.0,67282.0,0.001]
[1729536223578,0.15640956,67283.0,67282.0,0.001]
[1729536223779,0.15640956,67283.0,67282.0,0.002]
[1729536225568,0.11076403,67283.0,67282.0,0.002]
[1729536226973,0.520227,67283.0,67282.0,0.002]
[1729536229774,0.47278104,67283.0,67269.0,0.06155537]
[1729536229969,0.074356,67274.0,67269.0,0.0022298]
[1729536230178,0.07436,67270.0,67269.0,0.0022298]
[1729536230479,0.03714646,67270.0,67269.0,0.0022298]
[1729536230984,0.03714646,67270.0,67269.0,0.0162298]
[1729536231177,0.03714646,67270.0,67269.0,0.0302298]
[1729536232584,0.03714646,67270.0,67269.0,0.0232298]
[1729536232782,0.03714646,67270.0,67269.0,0.04924131]
[1729536233077,0.03714646,67270.0,67269.0,0.0232298]
[1729536233582,0.03714646,67270.0,67269.0,0.0162298]
[1729536239978,0.03714646,67270.0,67269.0,0.014]
[1729536240179,0.48310646,67270.0,67269.0,0.014]
[1729536240587,1.08310646,67270.0,67269.0,0.014]
[1729536240786,0.074381,67252.0,67251.0,0.074381]
[1729536241994,0.074375,67257.0,67251.0,0.074381]
[1729536242295,0.074381,67252.0,67251.0,0.074381]
[1729536242886,0.074381,67252.0,67251.0,0.075381]
[1729536243286,0.074375,67259.0,67258.0,0.074372]
[1729536243485,0.074367,67264.0,67263.0,0.074365]
[1729536244480,0.074367,67264.0,67261.0,0.05917362]
[1729536244682,0.074369,67262.0,67261.0,0.05917362]
[1729536244876,0.07437,67261.0,67258.0,0.05917362]
[1729536245087,0.3608,67262.0,67254.0,0.05917362]
[1729536245287,0.074378,67255.0,67254.0,0.074378]
[1729536245798,0.074378,67255.0,67253.0,0.05917362]
[1729536245799,0.074378,67254.0,67253.0,0.05917362]
[1729536246585,0.074378,67254.0,67253.0,0.074379]
[1729536247195,0.075378,67254.0,67253.0,0.074379]
[1729536247387,0.075378,67254.0,67253.0,0.10054497]
[1729536248301,0.076378,67254.0,67253.0,0.10054497]
[1729536250283,0.437178,67254.0,67253.0,0.10054497]
[1729536250498,0.437178,67254.0,67253.0,0.02616597]
[1729536250799,0.437178,67254.0,67253.0,0.074379]
[1729536251395,0.437178,67254.0,67250.0,0.3085]
[1729536251698,0.074381,67251.0,67250.0,0.284982]
[1729536252302,0.074381,67251.0,67250.0,0.31202228]
[1729536253096,0.074381,67251.0,67250.0,0.31702228]
[1729536257009,0.074381,67251.0,67250.0,0.5045487]
[1729536257699,0.074381,67251.0,67250.0,0.43034025]
[1729536258599,0.074381,67251.0,67250.0,0.43037632]
[1729536263610,0.074381,67251.0,67250.0,0.43040125]
[1729536264101,0.074381,67251.0,67250.0,0.31702228]
[1729536271112,0.3608,67259.0,67253.0,0.074376]
[1729536271313,0.3608,67259.0,67250.0,0.31702228]
[1729536271314,0.074373,67260.0,67259.0,0.074372]
[1729536271816,0.074373,67260.0,67256.0,0.3608]
[1729536272006,0.074374,67258.0,67257.0,0.18765799]
[1729536273402,0.078374,67258.0,67257.0,0.11328299]
[1729536274308,0.074375,67257.0,67255.0,0.07438299]
[1729536274510,0.005,67258.0,67254.0,0.07438299]
[1729536274713,0.074377,67255.0,67254.0,0.07438299]
[1729536275620,0.074378,67254.0,67253.0,0.07438299]
[1729536275811,0.173278,67254.0,67253.0,0.1877625]
[1729536276914,0.074381,67251.0,67250.0,0.07438299]
[1729536277225,0.074384,67249.0,67248.0,0.00018669]
[1729536277521,0.074384,67249.0,67248.0,0.02723476]
[1729536278517,0.520504,67249.0,67248.0,0.05968463]
[1729536278715,0.881304,67249.0,67248.0,0.00018669]
[1729536278916,0.881304,67249.0,67248.0,0.00418669]
[1729536279422,0.074393,67240.0,67239.0,0.05949794]
[1729536279625,0.074393,67240.0,67239.0,0.02653711]
[1729536279811,0.3608,67241.0,67238.0,0.05949794]
[1729536280010,0.3608,67241.0,67236.0,0.00223053]
[1729536280011,0.172795,67239.0,67236.0,0.00223053]
[1729536280206,0.074397,67237.0,67236.0,0.06166571]
[1729536280514,0.074397,67237.0,67228.0,0.074406]
[1729536280515,0.074398,67236.0,67235.0,0.05943681]
[1729536280710,0.074405,67230.0,67229.0,0.14878799]
[1729536280916,0.03717153,67230.0,67229.0,0.18781902]
[1729536281117,0.03717153,67230.0,67229.0,0.14866554]
[1729536281318,0.03717153,67230.0,67229.0,0.26207903]
[1729536281821,0.03717153,67230.0,67229.0,0.18781849]
[1729536282207,0.001,67230.0,67229.0,0.12341349]
[1729536282519,0.001,67230.0,67229.0,0.19781949]
[1729536284826,0.001,67230.0,67229.0,0.27202365]
[1729536285030,0.075405,67230.0,67229.0,0.27202365]
[1729536285214,0.076405,67230.0,67229.0,0.28202365]
[1729536285526,0.076405,67230.0,67229.0,0.094406]
[1729536287113,0.002,67230.0,67229.0,0.094406]
[1729536294123,0.002,67230.0,67229.0,0.20780952]
[1729536296820,0.0001857,67238.0,67237.0,0.074397]
[1729536297021,0.0001857,67238.0,67237.0,0.54860052]
[1729536297327,0.0745817,67238.0,67237.0,0.54860052]
[1729536298025,0.0745817,67238.0,67237.0,0.55160052]
[1729536298438,0.0745817,67238.0,67237.0,0.55360052]
[1729536299038,0.0745817,67238.0,67237.0,0.55360043]
[1729536299739,0.0745817,67238.0,67237.0,0.62778774]
[1729536299942,0.0745817,67238.0,67237.0,0.55360043]
[1729536302535,0.0745817,67238.0,67237.0,0.62782875]
[1729536302732,0.0745817,67238.0,67237.0,0.3658]
[1729536302932,0.0745817,67238.0,67237.0,0.39208684]
[1729536303147,0.0745817,67238.0,67237.0,0.50549179]
[1729536303342,0.0745817,67238.0,67237.0,0.57975527]
[1729536304237,0.0745817,67238.0,67237.0,0.50549179]
[1729536307249,0.0745817,67238.0,67237.0,0.59448965]
[1729536308249,0.0745817,67238.0,67237.0,0.50549179]
[1729536309149,0.0745817,67238.0,67237.0,0.39208684]
[1729536317151,0.0745817,67238.0,67237.0,0.50549323]
[1729536320259,0.0745817,67238.0,67237.0,0.14469323]
[1729536320761,0.0745817,67238.0,67237.0,0.21913339]
[1729536322546,0.0745817,67238.0,67237.0,0.21913529]
[1729536323754,0.0745817,67238.0,67237.0,0.03128684]
[1729536323961,0.5207417,67238.0,67237.0,0.06455596]
[1729536324264,0.60287313,67238.0,67237.0,0.005]
[1729536325550,0.074413,67222.0,67216.0,0.36237702]
[1729536325750,0.074413,67222.0,67216.0,0.3608]
[1729536325751,0.11086026,67222.0,67216.0,0.3608]
[1729536325953,0.11086026,67222.0,67221.0,0.02896754]
[1729536326150,0.11086026,67222.0,67221.0,0.00223136]
[1729536326775,0.11186026,67222.0,67214.0,0.0935]
[1729536326955,0.3608,67219.0,67214.0,0.0935]
[1729536327156,0.074421,67215.0,67214.0,0.167921]
[1729536327352,0.07460248,67215.0,67214.0,0.19467568]
[1729536327668,0.00018148,67215.0,67213.0,0.0936]
[1729536327966,0.074422,67214.0,67213.0,0.0936]
[1729536328556,0.074423,67213.0,67212.0,0.074424]
[1729536328860,0.074423,67213.0,67212.0,0.10039924]
[1729536331052,0.075423,67213.0,67212.0,0.11239924]
[1729536331357,0.001,67213.0,67212.0,0.11239924]
[1729536331864,0.0744,67235.0,67212.0,0.03997524]
[1729536332071,0.435211,67225.0,67224.0,0.074411]
[1729536332266,0.074411,67225.0,67224.0,0.14885116]
[1729536332473,0.074411,67225.0,67224.0,0.18783713]
[1729536332959,0.0921,67237.0,67224.0,0.11342613]
[1729536333152,0.4352,67234.0,67233.0,0.05935672]
[1729536333357,0.00223136,67244.0,67233.0,0.074401]
[1729536333358,0.074399,67235.0,67233.0,0.074401]
[1729536333558,0.074399,67235.0,67234.0,0.0744]
[1729536333752,0.074399,67235.0,67234.0,0.43892971]
[1729536333971,0.074399,67235.0,67234.0,0.29033253]
[1729536334271,0.520599,67235.0,67234.0,0.18752234]
[1729536334460,0.074401,67233.0,67232.0,0.07418981]
[1729536334659,0.074402,67232.0,67230.0,0.07418981]
[1729536334855,0.074405,67230.0,67225.0,0.08929579]
[1729536335062,0.3608,67233.0,67227.0,0.07419212]
[1729536335361,0.074408,67227.0,67226.0,0.07419212]
[1729536335559,0.074408,67227.0,67226.0,0.18761751]
[1729536337357,0.075408,67227.0,67226.0,0.18761751]
[1729536339465,0.075408,67227.0,67224.0,0.02684442]
[1729536339466,0.07441,67225.0,67224.0,0.02684442]
[1729536339662,0.03644894,67225.0,67219.0,0.19802]
[1729536339862,0.074414,67223.0,67222.0,0.074412]
[1729536340073,0.11086294,67223.0,67222.0,0.074412]
[1729536341174,0.03644894,67223.0,67222.0,0.074412]
[1729536341569,0.2356014,67235.0,67234.0,0.0744]
[1729536341768,0.12007994,67235.0,67234.0,0.0744]
[1729536341977,0.12007851,67235.0,67234.0,0.0744]
[1729536342278,0.12007811,67235.0,67234.0,0.0744]
[1729536343274,0.12007811,67235.0,67234.0,0.0754]
[1729536343275,0.0824,67235.0,67234.0,0.0754]
[1729536343461,0.016,67235.0,67234.0,0.0754]
[1729536343661,0.07662036,67244.0,67234.0,0.4472]
[1729536343861,0.00223136,67244.0,67243.0,0.07439]
[1729536345767,0.00723136,67244.0,67243.0,0.07439]
[1729536347270,0.01123136,67244.0,67243.0,0.10088576]
[1729536347783,0.074377,67256.0,67255.0,0.074375]
[1729536348465,0.074377,67256.0,67249.0,0.2588]
[1729536348466,0.3608,67260.0,67249.0,0.2588]
[1729536348665,0.3608,67260.0,67237.0,0.435196]
[1729536348666,0.074387,67249.0,67248.0,0.074384]
[1729536351373,0.074387,67249.0,67248.0,0.075384]
[1729536351675,0.082387,67249.0,67248.0,0.076384]
[1729536353372,0.082387,67249.0,67248.0,0.002]
[1729536356983,0.082387,67249.0,67248.0,0.076385]
[1729536360480,0.082387,67249.0,67248.0,0.077135]
[1729536361378,0.16449163,67249.0,67248.0,0.077135]
[1729536361581,0.15749163,67249.0,67248.0,0.076135]
[1729536361769,0.15749163,67249.0,67248.0,0.075135]
[1729536361770,0.15849163,67249.0,67248.0,0.075135]
[1729536363681,0.15949163,67249.0,67248.0,0.075135]
[1729536364273,0.15649163,67249.0,67248.0,0.075135]
[1729536364477,0.16249163,67249.0,67248.0,0.075135]
[1729536364987,0.15949163,67249.0,67248.0,0.075135]
[1729536365280,0.15749163,67249.0,67248.0,0.075135]
[1729536365473,0.15949163,67249.0,67248.0,0.075135]
[1729536366678,0.15849163,67249.0,67248.0,0.075135]
[1729536366875,0.16049163,67249.0,67248.0,0.075135]
[1729536367384,0.15649163,67249.0,67248.0,0.075135]
[1729536367586,0.15849163,67249.0,67248.0,0.075135]
[1729536367887,0.16149163,67249.0,67248.0,0.075135]
[1729536368084,0.08710463,67249.0,67248.0,0.075135]
[1729536369082,0.08510463,67249.0,67248.0,0.075135]
[1729536369282,0.08810463,67249.0,67248.0,0.075135]
[1729536369675,0.006,67249.0,67248.0,0.075135]
[1729536369876,0.003,67249.0,67248.0,0.521255]
[1729536370077,0.005,67249.0,67248.0,0.075135]
[1729536370289,0.002,67249.0,67248.0,0.075135]
[1729536370481,0.004,67249.0,67248.0,0.075135]
[1729536371690,0.002,67249.0,67248.0,0.075135]
[1729536371882,0.004,67249.0,67248.0,0.075135]
[1729536372981,0.078384,67249.0,67248.0,0.187415]
[1729536373878,0.078384,67249.0,67248.0,0.075135]
[1729536375980,0.439184,67249.0,67248.0,0.00075]
[1729536382094,0.078384,67249.0,67248.0,0.00075]
[1729536382784,0.21386095,67249.0,67248.0,0.00075]
[1729536383793,0.13175138,67249.0,67248.0,0.00075]
[1729536384901,0.078384,67249.0,67248.0,0.00075]
[1729536385999,0.074402,67232.0,67220.0,0.3608]
[1729536386198,0.074406,67229.0,67228.0,0.07663815]
[1729536386703,0.074406,67229.0,67228.0,0.10269099]
[1729536386890,0.074406,67229.0,67228.0,0.02828399]
[1729536387304,0.074406,67229.0,67228.0,0.04228399]
[1729536387796,0.074406,67229.0,67228.0,0.05628399]
[1729536388488,0.075406,67229.0,67228.0,0.05628399]
[1729536389896,0.075406,67229.0,67228.0,0.04228399]
[1729536390106,0.075406,67229.0,67228.0,0.12769099]
[1729536390305,0.18893835,67246.0,67228.0,0.48849099]
[1729536390600,0.074396,67238.0,67237.0,0.074396]
[1729536391691,0.074396,67238.0,67237.0,0.075396]
[1729536391887,0.11083615,67238.0,67237.0,0.075396]
[1729536392698,0.11083615,67238.0,67237.0,0.077396]
[1729536393901,0.11083615,67238.0,67237.0,0.10435206]
[1729536394910,0.00223135,67246.0,67245.0,0.074388]
[1729536395205,0.074389,67244.0,67243.0,0.435188]
[1729536395503,0.11082902,67244.0,67243.0,0.435188]
[1729536395705,0.03644002,67244.0,67243.0,0.435188]
[1729536395920,0.03644002,67244.0,67243.0,0.4426865]
[1729536396493,0.03644002,67244.0,67243.0,0.5550065]
[1729536396697,0.03643414,67244.0,67243.0,0.5550065]
[1729536396908,0.003,67246.0,67243.0,0.5550065]
[1729536397103,0.03643388,67245.0,67244.0,0.074389]
[1729536398398,0.003,67244.0,67243.0,0.5550065]
[1729536398898,0.074381,67251.0,67243.0,0.5550065]
[1729536399098,0.074381,67251.0,67244.0,0.006]
[1729536399298,0.03643342,67250.0,67249.0,0.074384]